fUSD/lending_fUSD_20240819
["ID","MTS","AMOUNT","RATE_DAILY","PERIOD"]
[335316296,1724105431827,-595.41,0.00010959,2]
[335316297,1724105431837,-948.65206145,0.00010989,2]
[335316298,1724105431847,-420.0,0.00010999,2]
[335316299,1724105431856,-3034.05242619,0.00010999,2]
[335316300,1724105431866,-250.0,0.00011,2]
[335316302,1724105431875,-1151.87,0.00011,2]
[335316303,1724105431885,-250.0,0.00011039,2]
[335316304,1724105431895,-160.53783797,0.00011125,2]
[335316305,1724105431905,-1000.0,0.00011127,2]
[335316306,1724105431914,-150.0,0.00011225,2]
[335316307,1724105431924,-500.0,0.00011316,2]
[335316308,1724105431933,-522.32,0.00011579,2]
[335316309,1724105431942,-379.78862293,0.00011675,2]
[335316310,1724105431952,-379.78862293,0.0001181,2]
[335316311,1724105431962,-1100.0,0.00012,2]
[335316312,1724105431972,-587.0,0.00012099,2]
[335316313,1724105431981,-5000.0,0.00012126,2]
[335316314,1724105431991,-5000.0,0.00012126,2]
[335316315,1724105432000,-379.78862293,0.00012147,2]
[335316316,1724105432010,-700.0,0.00012156,2]
[335316317,1724105432019,-409.64902746,0.00012351,2]
[335316318,1724105432029,-379.78862293,0.00012357,2]
[335316319,1724105432039,-1000.0,0.00012518,2]
[335316320,1724105432048,-379.78862293,0.00012703,2]
[335316321,1724105432061,-409.64902746,0.0001278,2]
[335316322,1724105432070,-2000.0,0.000128,2]
[335316323,1724105432081,-160.53783796,0.00012847,2]
[335316324,1724105432090,-155.0,0.00012966,2]
[335316325,1724105432101,-409.64902746,0.00012994,2]
[335316326,1724105432110,-155.0,0.00013001,2]
[335316327,1724105432120,-379.78862293,0.00013031,2]
[335316328,1724105432130,-155.0,0.00013042,2]
[335316329,1724105432142,-962.80465455,0.00013086,2]
[335316330,1724105432152,-151.0,0.00013151,2]
[335316331,1724105432161,-409.64902746,0.00013282,2]
[335316332,1724105432170,-155.0,0.00013292,2]
[335316333,1724105432180,-823.0,0.00013309,2]
[335316334,1724105432190,-843.0,0.00013327,2]
[335316335,1724105432199,-379.78862293,0.00013392,2]
[335316336,1724105432209,-843.0,0.00013464,2]
[335316337,1724105432218,-388.10200341,0.00013522,2]
[335316338,1724105432230,-21.54702405,0.00013522,2]
[335316339,1724105432240,-843.0,0.00013602,2]
[335316340,1724105432249,-379.78862293,0.00013625,2]
[335316341,1724105432259,-200.0,0.00013699,2]
[335316342,1724105432269,-2751.0,0.00013699,2]
[335316343,1724105432279,-317.08,0.00013699,2]
[335316344,1724105432455,-500.0,0.00013699,2]
[335316345,1724105432464,-442.3726,0.000137,2]
[335316346,1724105432473,-843.0,0.00013739,2]
[335316347,1724105432482,-615.04746687,0.00013739,2]
[335316348,1724105432491,-1398.89421408,0.000138,2]
[335316349,1724105432502,-567.14,0.000138,2]
[335316350,1724105432513,-33.96578592,0.000138,2]
[335316351,1724105432522,-507.04343398,0.00013843,2]
[335316352,1724105432534,-15.27656602,0.00013843,2]
[335316353,1724105432543,-409.64902746,0.00013866,2]
[335316354,1724105432552,-843.0,0.00013876,2]
[335316355,1724105432561,-723.89343005,0.000139,2]
[335316356,1724105432572,-327.15759399,0.000139,2]
[335316357,1724105432581,-150.0,0.000139,2]
[335316358,1724105432590,-388.1585773,0.00013909,2]
[335316359,1724105432601,-570.91830267,0.00013909,2]
[335316360,1724105432616,-40.92312003,0.00013909,2]
[335316361,1724105432625,-379.78862293,0.00013922,2]
[335316362,1724105432634,-1150.0,0.00014,2]
[335316363,1724105432643,-192.203668,0.00014,2]
[335316364,1724105432652,-200.0,0.00014008,2]
[335316365,1724105432661,-843.0,0.00014014,2]
[335316366,1724105432671,-68.01558576,0.00014075,2]
[335316367,1724105432682,-311.77303717,0.00014075,2]
[335316368,1724105432691,-191.13419178,0.0001415,2]
[335316369,1724105432703,-218.51483568,0.0001415,2]
[335316370,1724105432712,-776.36091876,0.00014151,2]
[335316371,1724105432726,-66.63908124,0.00014151,2]
[335316372,1724105432735,-372.3396974,0.00014258,2]
[335316373,1724105432746,-37.30933006,0.00014258,2]
[335316374,1724105432755,-150.0,0.000144,2]
[335316375,1724105432768,-379.78862293,0.00014423,2]
[335316376,1724105432777,-415.17522534,0.00014517,2]
[335316377,1724105432787,-379.78862293,0.0001453,2]
[335316378,1724105432796,-160.53783796,0.00014569,2]
[335316379,1724105432805,-1152.0,0.0001464,2]
[335316380,1724105432815,-409.64902746,0.00014759,2]
[335316381,1724105432824,-2000.0,0.000148,2]
[335316382,1724105432833,-150.0,0.000149,2]
[335316383,1724105432842,-409.64902746,0.0001498,2]
[335316384,1724105432852,-500.0,0.00014999,2]
[335316385,1724105432862,-500.0,0.00014999,2]
[335316386,1724105432871,-500.0,0.00014999,2]
[335316387,1724105432880,-500.0,0.00014999,2]
[335316388,1724105432890,-495.0,0.00015,2]
[335316389,1724105432899,-379.78862293,0.00015026,2]
[335316390,1724105432909,-300.0,0.00015068,2]
[335316391,1724105432918,-500.0,0.000151,2]
[335316392,1724105432927,-409.64902746,0.0001517,2]
[335316393,1724105432937,-379.78862293,0.00015212,2]
[335316394,1724105432946,-1000.0,0.000153,2]
[335316395,1724105432955,-379.78862293,0.00015373,2]
[335316396,1724105432964,-150.0,0.000154,2]
[335316397,1724105432974,-409.64902746,0.00015512,2]
[335316398,1724105432983,-379.78862293,0.00015719,2]
[335316399,1724105432992,-2000.0,0.000158,2]
[335316400,1724105433001,-6637.24808578,0.00015821,3]
[335316401,1724105433010,-167.0,0.00015831,2]
[335316402,1724105433020,-409.64902746,0.00015831,2]
[335316403,1724105433029,-150.0,0.000159,3]
[335316404,1724105433038,-409.64902746,0.0001592,2]
[335316405,1724105433048,-379.78862293,0.00015977,2]
[335316406,1724105433062,-358.98630409,0.00016,2]
[335316407,1724105433075,-841.01369591,0.00016,2]
[335316408,1724105433084,-2000.0,0.00016,2]
[335316409,1724105433094,-286.788537,0.00016,2]
[335316410,1724105433104,-286.788537,0.00016,2]
[335316411,1724105433113,-2000.0,0.0001601,2]
[335316412,1724105433122,-2000.0,0.0001602,2]
[335316413,1724105433132,-1114.83420314,0.0001603,2]
[335316414,1724105433144,-684.71908266,0.0001603,2]
[335316415,1724105433155,-511.6476622,0.0001603,2]
[335316416,1724105433166,-70.45348065,0.00016103,2]
[335316417,1724105437444,-415.17522534,0.00014509,2]
[335316418,1724105437454,-500.0,0.00015829,2]
[335316419,1724105437463,-199.30226172,0.00015829,2]
[335316420,1724105437474,-381.3525685,0.00015829,2]
[335316421,1724105437484,-221.2802315,0.00015829,2]
[335316422,1724105437496,-278.7197685,0.00015829,2]
[335316423,1724105437505,-500.0,0.00015829,2]
[335316424,1724105437514,-500.0,0.00015829,2]
[335316425,1724105437523,-500.0,0.00015829,2]
[335316426,1724105437533,-500.0,0.00015829,2]
[335316427,1724105437542,-500.0,0.00015829,2]
[335316428,1724105437551,-456.22225574,0.00015829,2]
[335316429,1724105437560,-500.0,0.00015829,2]
[335316430,1724105437569,-500.0,0.00015829,2]
[335316431,1724105437578,-500.0,0.00015829,2]
[335316432,1724105437587,-500.0,0.00015829,2]
[335316433,1724105437597,-500.0,0.00015829,2]
[335316434,1724105437606,-154.64167576,0.00015829,2]
[335316435,1724105437617,-345.35832424,0.00015829,2]
[335316436,1724105437626,-8.00468627,0.00015829,2]
[335316437,1724105437637,-491.99531373,0.00015829,2]
[335316438,1724105437648,-500.0,0.00015829,2]
[335316439,1724105437657,-500.0,0.00015829,2]
[335316440,1724105437666,-500.0,0.00015829,2]
[335316441,1724105437675,-500.0,0.00015829,2]
[335316442,1724105437684,-500.0,0.00015829,2]
[335316443,1724105437693,-500.0,0.00015829,2]
[335316444,1724105437702,-500.0,0.00015829,2]
[335316445,1724105437711,-500.0,0.00015829,2]
[335316446,1724105437720,-500.0,0.00015829,2]
[335316447,1724105437730,-500.0,0.00015829,2]
[335316448,1724105437741,-500.0,0.00015829,2]
[335316449,1724105437750,-500.0,0.00015829,2]
[335316450,1724105437759,-801.59064639,0.00016103,2]
[335316451,1724105437771,-740.95587296,0.00016103,2]
[335316452,1724105437780,-700.0,0.00016105,2]
[335316453,1724105437789,-6637.24808578,0.00016106,3]
[335316454,1724105437798,-522.32,0.00016107,2]
[335316455,1724105437808,-400.0,0.00016149,2]
[335316456,1724105437818,-5870.39701232,0.00016238,2]
[335316457,1724105437829,-871.60298768,0.00016238,2]
[335316458,1724105437839,-409.64902746,0.00016267,2]
[335316459,1724105437849,-160.53783796,0.00016291,2]
[335316460,1724105437859,-379.78862293,0.00016348,2]
[335316461,1724105437868,-167.0,0.00016354,2]
[335316462,1724105437878,-150.0,0.000164,4]
[335316463,1724105437887,-6637.24808578,0.00016428,3]
[335316464,1724105437897,-157.16038387,0.00016438,2]
[335316465,1724105437907,-300.0,0.00016438,2]
[335316466,1724105437917,-409.64902746,0.00016579,2]
[335316467,1724105437926,-501.44290142,0.00016637,2]
[335316468,1724105437936,-379.78862293,0.00016642,2]
[335316469,1724105437945,-1000.0,0.0001669,2]
[335316470,1724105437955,-173.69,0.00016712,2]
[335316471,1724105437964,-409.64902746,0.00016722,2]
[335316473,1724105437973,-26.64133618,0.00016828,3]
[335316475,1724105437985,-6445.00021091,0.00016828,3]
[335316477,1724105437997,-6802.85462451,0.00016828,3]
[335316479,1724105438006,-3786.90191419,0.00016848,2]
[335316480,1724105438016,-858.69770358,0.00016872,3]
[335316481,1724105438028,-1520.39891193,0.00016872,3]
[335316482,1724105438039,-275.96458678,0.00016872,3]
[335316483,1724105438051,-4344.93879771,0.00016872,3]
[335316484,1724105438064,-6637.24808578,0.00016874,3]
[335316485,1724105438074,-167.0,0.00016876,2]
[335316486,1724105438083,-150.0,0.000169,4]
[335316487,1724105438093,-379.78862293,0.00016915,2]
[335316488,1724105438103,-379.78862293,0.00017011,2]
[335316489,1724105438113,-409.64902746,0.00017151,2]
[335316490,1724105438123,-6637.24808578,0.0001719,3]
[335316491,1724105438133,-2687.7,0.000172,7]
[335316492,1724105438145,-409.64902746,0.00017392,2]
[335316493,1724105438155,-167.0,0.00017399,2]
[335316494,1724105438165,-150.0,0.000174,5]
[335316495,1724105438175,-379.78862293,0.00017436,2]
[335316496,1724105438185,-317.08,0.00017534,2]
[335316497,1724105438195,-1019.0,0.00017563,2]
[335316498,1724105438204,-409.64902746,0.00017575,2]
[335316499,1724105438214,-595.41,0.00017592,2]
[335316500,1724105438224,-379.78862293,0.000177,2]
[335316501,1724105438233,-2258.0,0.00017714,2]
[335316502,1724105438243,-437.267523,0.00017808,2]
[335316503,1724105438253,-150.0,0.000179,5]
[335316504,1724105438263,-167.0,0.00017921,2]
[335316505,1724105438271,-150.0,0.00017975,2]
[335316506,1724105438281,-379.78862293,0.00017993,2]
[335316507,1724105438291,-409.64902746,0.00017997,2]
[335316508,1724105438301,-1250.0,0.00018,2]
[335316509,1724105438311,-1003.26,0.00018,2]
[335316510,1724105438320,-576.956499,0.00018,2]
[335316511,1724105438330,-150.0,0.00018,2]
[335316512,1724105438340,-150.0,0.00018,2]
[335316513,1724105438350,-160.53783796,0.00018013,2]
[335316514,1724105438359,-400.0,0.00018167,2]
[335316515,1724105438369,-409.64902746,0.00018273,2]
[335316516,1724105438379,-379.78862293,0.00018329,2]
[335316517,1724105438388,-522.32,0.00018371,2]
[335316518,1724105438399,-150.0,0.000184,6]
[335316519,1724105438408,-167.0,0.00018444,2]
[335316520,1724105438418,-379.78862293,0.00018491,2]
[335316521,1724105438427,-6637.24808578,0.00018534,3]
[335316522,1724105438437,-409.64902746,0.00018544,2]
[335316523,1724105438446,-437.267523,0.0001863,2]
[335316524,1724105438455,-379.78862293,0.00018796,2]
[335316525,1724105438464,-158.36,0.000188,31]
[335316526,1724105438473,-158.36,0.000188,31]
[335316527,1724105438482,-409.64902746,0.0001888,2]
[335316528,1724105438491,-210.690407,0.000189,6]
[335316529,1724105438500,-150.0,0.00018974,2]
[335316530,1724105438510,-409.64902746,0.00019134,2]
[335316531,1724105438519,-379.78862293,0.00019139,2]
[335316532,1724105438528,-750.0,0.000192,2]
[335316533,1724105438537,-409.64902746,0.00019387,2]
[335316534,1724105438547,-700.0,0.000194,7]
[335316535,1724105438556,-379.78862293,0.00019418,2]
[335316536,1724105438566,-437.267523,0.00019452,2]
[335316537,1724105438575,-3162.0,0.00019485,2]
[335316538,1724105438585,-1400.0,0.000195,7]
[335316539,1724105438594,-1244.0,0.000195,2]
[335316540,1724105438604,-1003.26,0.00019515,2]
[335316541,1724105438613,-409.64902746,0.0001953,2]
[335316542,1724105438623,-2200.0,0.000196,7]
[335316543,1724105438632,-379.78862293,0.00019643,2]
[335316544,1724105438642,-6637.24808578,0.0001969,4]
[335316545,1724105438653,-2900.0,0.000197,7]
[335316546,1724105438667,-160.53783796,0.00019734,2]
[335316547,1724105438676,-13274.4961716,0.0001978,4]
[335316548,1724105438685,-3600.0,0.000198,7]
[335316549,1724105438694,-459.6266,0.0001988,2]
[335316550,1724105438704,-409.64902757,0.00019885,2]
[335316551,1724105438713,-250.71999573,0.0001989,2]
[335316552,1724105438722,-19911.7442573,0.0001989,4]
[335316553,1724105438731,-217.0,0.0001989,2]
[335316554,1724105438740,-34080.0869,0.000199,2]
[335316555,1724105438750,-1000.0,0.000199,2]
[335316556,1724105438759,-261.1055,0.000199,2]
[335316557,1724105438768,-700.0,0.000199,7]
[335316558,1724105438777,-161.40044995,0.000199,2]
[335316559,1724105438786,-1709.72361925,0.000199,2]
[335316560,1724105438796,-215.29269057,0.00019958,2]
[335316561,1724105438805,-205754.690659,0.0001996,4]
[335316562,1724105438815,-159823.860736,0.0001996,4]
[335316563,1724105438825,-26637.3101226,0.00019963,4]
[335316564,1724105438835,-1136.0,0.00019965,2]
[335316565,1724105438844,-59735.232772,0.00019969,4]
[335316566,1724105438855,-53274.6202452,0.00019969,4]
[335316567,1724105438864,-150.71639531,0.00019973,4]
[335316568,1724105438874,-321.69750311,0.00019973,2]
[335316569,1724105438883,-200.0,0.00019973,2]
[335316570,1724105438893,-6637.24808578,0.00019976,4]
[335316571,1724105438903,-500.0,0.00019979,2]
[335316572,1724105438913,-500.0,0.00019979,2]
[335316573,1724105438923,-500.0,0.00019979,2]
[335316574,1724105438932,-119470.465544,0.0001998,4]
[335316575,1724105438942,-159823.860736,0.0001998,4]
[335316576,1724105438952,-500.0,0.0001998,2]
[335316577,1724105438961,-500.0,0.0001998,2]
[335316578,1724105438970,-500.0,0.0001998,2]
[335316579,1724105438979,-531.2,0.0001998,2]
[335316580,1724105438990,-500.0,0.0001998,2]
[335316581,1724105438999,-500.0,0.0001998,2]
[335316582,1724105439009,-500.0,0.0001998,2]
[335316583,1724105439018,-500.0,0.0001998,2]
[335316584,1724105439027,-500.0,0.0001998,2]
[335316585,1724105439036,-500.0,0.0001998,2]
[335316586,1724105439046,-500.0,0.0001998,2]
[335316587,1724105439057,-638.44,0.0001998,2]
[335316588,1724105439067,-159823.860736,0.0001998,4]
[335316589,1724105439076,-500.0,0.00019989,2]
[335316590,1724105439086,-500.0,0.00019989,2]
[335316591,1724105439095,-500.0,0.00019989,2]
[335316592,1724105439105,-429.62,0.00019989,2]
[335316593,1724105439114,-53274.6202452,0.0001999,4]
[335316594,1724105439123,-1108.6927189,0.00019996,2]
[335316595,1724105439134,-2255.6223336,0.00019996,2]
[335316596,1724105439144,-15924.3136629,0.00019996,2]
[335316597,1724105439153,-379.78862307,0.00019997,2]
[335316598,1724105439162,-218.40329671,0.00019999,2]
[335316599,1724105439172,-866.95738975,0.00019999,2]
[335316600,1724105439181,-609.64,0.00019999,2]
[335316601,1724105439191,-150.99456627,0.00019999,2]
[335316602,1724105439200,-304532.26379066,0.0002,15]
[335316603,1724105439210,-3086.23652655,0.0002,2]
[335316604,1724105439219,-4958.0,0.0002,2]
[335316605,1724105439228,-200.0,0.0002,2]
[335316606,1724105439237,-186.0,0.0002,2]
[335316607,1724105439246,-208.0,0.0002,2]
[335316608,1724105439256,-208.0,0.0002,2]
[335316609,1724105439264,-3300.0,0.0002,2]
[335316610,1724105439274,-1372.18981479,0.0002,5]
[335316611,1724105439283,-251.36914459,0.0002,2]
[335316612,1724105439292,-1183.58521752,0.0002,4]
[335316613,1724105439301,-614.309381,0.0002,2]
[335316614,1724105439311,-745.33273549,0.0002,2]
[335316615,1724105439320,-20000.0,0.0002,10]
[335316616,1724105439329,-20000.0,0.0002,10]
[335316617,1724105439338,-20000.0,0.0002,10]
[335316618,1724105439347,-11743.238648,0.0002,10]
[335316619,1724105439357,-24684.77042594,0.0002,2]
[335316620,1724105439366,-1152.8583144,0.0002,7]
[335316621,1724105439375,-2000.0,0.0002,3]
[335316622,1724105439385,-250.0,0.0002,30]
[335316623,1724105439397,-127811.46792695,0.0002,2]
[335316624,1724105439412,-620.0,0.0002,2]
[335316625,1724105439428,-329.43847413,0.00015,2]
[335316626,1724105439439,-407.51152587,0.00015,2]
[335316627,1724105439448,-408.4423733,0.0002,2]
[335316628,1724105439459,-867.57638522,0.0002,2]
[335316629,1724105439470,-48803.05035539,0.0002,2]
[335316630,1724105439481,-563.31326908,0.0002,2]
[335316635,1724105439580,-736.95,0.00015,2]
[335316636,1724105439589,-736.95,0.00015,2]
[335316637,1724105439599,-126.1,0.00015,2]
[335316638,1724105439610,-610.85,0.00015,2]
[335316639,1724105439620,-276.0553384,0.00015,2]
[335316640,1724105439672,-460.8946616,0.00015,2]
[335316641,1724105439682,-736.95,0.00015,2]
[335316642,1724105439691,-533.0012984,0.00015,2]
[335316643,1724105439813,-203.9487016,0.00015,2]
[335316644,1724105439823,-736.95,0.00015,2]
[335316645,1724105439832,-736.95,0.00015,2]
[335316646,1724105439842,-736.95,0.00015,2]
[335316647,1724105439851,-45798.56022417,0.0002,2]
[335316648,1724105439890,-234552.22735007,0.0002,2]
[335316649,1724105439902,-12477.20885327,0.0002,2]
[335316650,1724105439913,-56457.2370869,0.0002,2]
[335316651,1724105439967,-1411.2,0.0002,2]
[335316831,1724105443407,-19744.92026862,0.00011291,2]
[335316832,1724105443416,-736.95,0.00015,2]
[335316833,1724105443426,-736.95,0.00015,2]
[335316834,1724105443437,-736.95,0.00015,2]
[335316835,1724105443446,-736.95,0.00015,2]
[335316836,1724105443455,-736.95,0.00015,2]
[335316837,1724105443465,-736.95,0.00015,2]
[335316838,1724105443474,-736.95,0.00015,2]
[335316839,1724105443484,-736.95,0.00015,2]
[335316840,1724105443493,-736.95,0.00015,2]
[335316841,1724105443503,-736.95,0.00015,2]
[335316842,1724105443512,-289.43522308,0.000199,3]
[335316843,1724105443522,-191.52496414,0.000199,2]
[335316844,1724105443531,-65161.64900802,0.0002,2]
[335316845,1724105443543,-371406.70299584,0.0002,2]
[335316846,1724105443563,-229.66546833,0.0001405,2]
[335316847,1724105443573,-272.07053157,0.00015,2]
[335316850,1724105445593,-211.61315419,0.000149,2]
[335316851,1724105445603,-464.87946843,0.00015,2]
[335316852,1724105445612,-736.95,0.00015,2]
[335316853,1724105445622,-736.95,0.00015,2]
[335316854,1724105445631,-736.95,0.00015,2]
[335316855,1724105445640,-736.95,0.00015,2]
[335316856,1724105445650,-171.35214003,0.00015,2]
[335316857,1724105445661,-565.59785997,0.00015,2]
[335316858,1724105445670,-736.95,0.00015,2]
[335316859,1724105445680,-736.95,0.00015,2]
[335316860,1724105445689,-736.95,0.00015,2]
[335316861,1724105445698,-736.95,0.00015,2]
[335316862,1724105445707,-736.95,0.00015,2]
[335316863,1724105445717,-736.95,0.00015,2]
[335316864,1724105445726,-736.95,0.00015,2]
[335316865,1724105445735,-500.0,0.00015829,2]
[335316866,1724105445744,-926.0,0.0002,2]
[335316867,1724105445753,-180975.92319497,0.0002,2]
[335316868,1724105445764,-339615.55883646,0.0002,2]
[335316869,1724105445775,-435.93874686,0.0002,2]
[335316870,1724105445787,-608.68038004,0.0002,2]
[335316871,1724105445802,-301.85940949,0.00015,2]
[335316872,1724105445813,-435.09059051,0.00015,2]
[335316873,1724105445822,-667.34554343,0.0002,2]
[335316874,1724105445833,-631.8388,0.0002,2]
[335316875,1724105445845,-1850.75450676,0.0002,2]
[335316876,1724105445856,-3283.46653717,0.0002,2]
[335316877,1724105445867,-521.20184298,0.0002,2]
[335316878,1724105563338,158.52,0.000139,31]
[335316879,1724105563389,158.52,0.000139,31]
[335316880,1724105563452,158.52,0.000139,31]
[335316881,1724105563510,158.52,0.000139,31]
[335316882,1724105563584,158.52,0.000139,31]
[335316888,1724106361811,451.41,9.771e-05,2]
[335316889,1724106425358,1252.74082596,9.771e-05,2]
[335316890,1724106442043,168.98464084,9.771e-05,10]
[335316893,1724106469991,1465.86187704,9.771e-05,2]
[335316912,1724106631685,-196.76302029,9.988e-05,2]
[335316913,1724106631694,-300.0,9.999e-05,2]
[335316914,1724106631703,-314.92915907,0.0001,2]
[335316915,1724106631715,-270.26587227,0.0001,2]
[335316916,1724106631727,-284.44599144,0.0001,2]
[335316917,1724106631739,-271.05628702,0.0001,2]
[335316918,1724106631836,-4873.5326902,0.0001,2]
[335316919,1724106631845,-1050.0,0.0001,2]
[335316920,1724106631854,-8405.3531919,0.0001,2]
[335316921,1724106631863,-155.0,0.00010026,2]
[335316922,1724106631872,-155.0,0.00010026,2]
[335316923,1724106631881,-1148.36,0.00010517,2]
[335316924,1724106631891,-595.90557673,0.00010779,2]
[335316925,1724106631900,-1362.04690402,0.00010832,2]
[335316926,1724106631911,-2999.0,0.00010832,2]
[335316933,1724106637915,-287.70309598,0.00010832,2]
[335316934,1724106637925,-196.1048719,0.00010849,2]
[335316935,1724106638062,-293.3751281,0.00010849,2]
[335316936,1724106638071,-150.0,0.00010889,2]
[335316937,1724106638080,-160.53783796,0.00010899,2]
[335316938,1724106638090,-160.53783796,0.000109,2]
[335316939,1724106638099,-52925.51134647,0.000109,2]
[335316940,1724106638108,-160.53783796,0.000109,2]
[335316941,1724106638117,-3419.44723846,0.000109,2]
[335316942,1724106638127,-383.04992826,0.000109,2]
[335316943,1724106638135,-322.80089988,0.000109,2]
[335316944,1724106638145,-168.36,0.00010959,2]
[335316946,1724106638154,-500.0,0.0001096,2]
[335316948,1724106638164,-215.29269057,0.00010987,2]
[335316950,1724106638175,-500.0,0.00010989,2]
[335316952,1724106638186,-621.25623612,0.00010989,2]
[335316954,1724106638196,-500.0,0.00010989,2]
[335316956,1724106638207,-500.0,0.00010989,2]
[335316958,1724106638216,-500.0,0.00010989,2]
[335316960,1724106638225,-500.0,0.00010989,2]
[335316962,1724106638234,-408.41,0.00010989,2]
[335316964,1724106638243,-869.83,0.00010989,2]
[335316966,1724106638252,-869.83,0.00010989,2]
[335316967,1724106638261,-869.83,0.00010989,2]
[335316969,1724106638270,-869.83,0.00010989,2]
[335316971,1724106638279,-869.83,0.00010989,2]
[335316973,1724106638290,-869.83,0.00010989,2]
[335316975,1724106638299,-500.0,0.00010989,2]
[335316977,1724106638308,-500.0,0.00010989,2]
[335316979,1724106638319,-500.0,0.00010989,2]
[335316981,1724106638328,-422.58,0.00010989,2]
[335316982,1724106638337,-500.0,0.00010989,2]
[335316984,1724106638345,-500.0,0.00010989,2]
[335316986,1724106638355,-500.0,0.00010989,2]
[335316988,1724106638365,-436.39,0.00010989,2]
[335316990,1724106638377,-905.96,0.00010989,2]
[335316992,1724106638387,-905.96,0.00010989,2]
[335316994,1724106638396,-905.96,0.00010989,2]
[335316996,1724106638405,-905.96,0.00010989,2]
[335316997,1724106638418,-905.96,0.00010989,2]
[335316999,1724106638427,-905.96,0.00010989,2]
[335317001,1724106638436,-1288.01,0.00010989,2]
[335317003,1724106638445,-1288.01,0.00010989,2]
[335317005,1724106638455,-1288.01,0.00010989,2]
[335317006,1724106638464,-1288.01,0.00010989,2]
[335317008,1724106638473,-1288.01,0.00010989,2]
[335317010,1724106638483,-1288.01,0.00010989,2]
[335317012,1724106638492,-1288.01,0.00010989,2]
[335317014,1724106638502,-708.19,0.00010989,2]
[335317016,1724106638511,-708.19,0.00010989,2]
[335317017,1724106638520,-708.19,0.00010989,2]
[335317019,1724106638529,-708.19,0.00010989,2]
[335317021,1724106638538,-708.19,0.00010989,2]
[335317023,1724106638547,-708.19,0.00010989,2]
[335317025,1724106638556,-2232.73,0.00010989,2]
[335317027,1724106638565,-2232.73,0.00010989,2]
[335317028,1724106638574,-2232.73,0.00010989,2]
[335317030,1724106638583,-2232.73,0.00010989,2]
[335317032,1724106638599,-2232.73,0.00010989,2]
[335317034,1724106638609,-2232.73,0.00010989,2]
[335317036,1724106638618,-2232.73,0.00010989,2]
[335317038,1724106638628,-1827.61,0.00010989,2]
[335317040,1724106638637,-1827.61,0.00010989,2]
[335317041,1724106638645,-1827.61,0.00010989,2]
[335317043,1724106638654,-1827.61,0.00010989,2]
[335317045,1724106638663,-1827.61,0.00010989,2]
[335317047,1724106638672,-1827.61,0.00010989,2]
[335317049,1724106638681,-1827.61,0.00010989,2]
[335317051,1724106638690,-500.0,0.00010989,2]
[335317053,1724106638698,-500.0,0.00010989,2]
[335317055,1724106638707,-500.0,0.00010989,2]
[335317057,1724106638716,-500.0,0.00010989,2]
[335317059,1724106638726,-500.0,0.00010989,2]
[335317060,1724106638735,-500.0,0.00010989,2]
[335317062,1724106638744,-500.0,0.00010989,2]
[335317064,1724106638753,-500.0,0.00010989,2]
[335317066,1724106638762,-150.0,0.00010989,2]
[335317067,1724106638771,-500.0,0.00010989,2]
[335317069,1724106638780,-500.0,0.00010989,2]
[335317071,1724106638790,-500.0,0.00010989,2]
[335317072,1724106638799,-250.0,0.00010989,2]
[335317073,1724106638808,-500.0,0.00010989,2]
[335317074,1724106638816,-500.0,0.00010989,2]
[335317075,1724106638825,-500.0,0.00010989,2]